bitfinex/quotes_SOLUSD_20251204
["timestamp","ask_amount","ask_price","bid_price","bid_amount"]
[1764868542481,7.72955522,142.46,142.42,7.02110705]
[1764868542482,0.72,142.45,142.41,11.50718203]
[1764868542662,8.46,142.45,142.41,0.7]
[1764868542866,8.46,142.45,142.41,5.18536561]
[1764868543065,0.72,142.44,142.41,5.18536561]
[1764868543266,7.02099276,142.43,142.4,4.48536561]
[1764868543676,7.74099276,142.43,142.4,5.14536561]
[1764868544106,7.02099276,142.43,142.38,7.02333501]
[1764868544400,0.72,142.42,142.38,5.14536561]
[1764868545001,0.72,142.42,142.39,4.48536561]
[1764868545365,7.74194634,142.42,142.38,5.14536561]
[1764868545999,7.74194634,142.42,142.38,4.48536561]
[1764868546196,0.72,142.41,142.37,4.48536561]
[1764868547478,7.02247191,142.4,142.36,7.68444469]
[1764868547689,7.02247191,142.4,142.36,12.1698103]
[1764868547990,7.74247191,142.4,142.36,12.1698103]
[1764868548191,16.308864,142.42,142.37,0.66]
[1764868548368,8.46,142.43,142.39,4.48536561]
[1764868548570,7.74,142.43,142.39,0.66]
[1764868548770,0.72,142.42,142.4,4.48536561]
[1764868549390,0.72,142.42,142.39,7.68287993]
[1764868549591,0.72,142.42,142.4,4.48536561]
[1764868550592,14.76120219,142.43,142.41,5.14536561]
[1764868550895,0.72,142.45,142.42,4.48536561]
[1764868551301,7.74011221,142.45,142.42,4.48536561]
[1764868551683,31.06857648,142.46,142.43,4.48536561]
[1764868551886,7.74,142.46,142.44,5.14536561]
[1764868552074,7.74,142.46,142.43,5.14536561]
[1764868552407,8.46,142.46,142.43,0.66]
[1764868552981,15.47965976,142.46,142.43,0.66]
[1764868553275,19.96502537,142.46,142.43,0.66]
[1764868553577,15.47965976,142.46,142.43,7.68093904]
[1764868553782,7.73965976,142.46,142.43,7.68093904]
[1764868555201,19.24456361,142.47,142.44,0.66]
[1764868555374,19.96456361,142.47,142.44,0.66]
[1764868556183,14.759198,142.47,142.44,0.66]
[1764868556811,15.479198,142.47,142.44,0.66]
[1764868557001,15.479198,142.47,142.43,11.50630465]
[1764868557500,15.479198,142.47,142.44,0.66]
[1764868558102,15.479198,142.47,142.43,11.50630465]
[1764868558305,15.479198,142.47,142.43,12.16630465]
[1764868558978,7.74,142.47,142.44,7.68046217]
[1764868559177,16.508864,142.48,142.45,4.48536561]
[1764868559505,16.508864,142.48,142.46,0.66]
[1764868559811,0.2,142.48,142.45,4.48536561]
[1764868560106,0.2,142.48,142.45,12.16532078]
[1764868560309,7.93854838,142.48,142.45,7.67995517]
[1764868560801,4.48536561,142.46,142.42,7.02132864]
[1764868561003,4.48536561,142.46,142.43,7.02095303]
[1764868561004,7.74,142.46,142.43,7.02095303]
[1764868561192,7.74,142.46,142.43,12.16631864]
[1764868561503,5.20536561,142.47,142.44,7.68044069]
[1764868561689,8.66,142.48,142.45,7.01999302]
[1764868561890,0.2,142.48,142.45,12.16535863]
[1764868562105,0.2,142.48,142.47,11.50438715]
[1764868562290,0.2,142.48,142.46,12.16470337]
[1764868562691,0.2,142.48,142.45,11.5052446]
[1764868562889,0.92,142.48,142.45,7.67987899]
[1764868563205,12.42397727,142.48,142.44,7.02036439]
[1764868563410,11.70397727,142.48,142.45,0.66]
[1764868563704,12.42397727,142.48,142.44,12.16573]
[1764868564214,7.93861166,142.48,142.45,0.66]
[1764868564528,7.93861166,142.48,142.44,12.16573]
[1764868566718,7.93861166,142.48,142.45,5.14536561]
[1764868566894,0.2,142.48,142.46,4.48536561]
[1764868567089,0.2,142.48,142.46,5.14536561]
[1764868567617,0.72,142.47,142.42,25.95336728]
[1764868567789,5.20536561,142.47,142.42,11.50656785]
[1764868567989,5.20536561,142.47,142.42,12.16656785]
[1764868568190,0.72,142.46,142.42,12.16656785]
[1764868568391,4.48536561,142.45,142.4,12.16755359]
[1764868568602,11.50682095,142.43,142.39,11.50817282]
[1764868568923,19.24682095,142.43,142.39,11.50817282]
[1764868569127,19.96682095,142.43,142.39,12.16817282]
[1764868569308,15.48145534,142.43,142.39,12.16817282]
[1764868571426,5.20536561,142.42,142.38,7.02333367]
[1764868571629,5.20536561,142.42,142.38,11.50869928]
[1764868571799,5.20536561,142.42,142.38,12.16869928]
[1764868572195,5.20536561,142.41,142.36,5.14536561]
[1764868572692,5.20536561,142.41,142.34,16.308864]
[1764868572693,4.48536561,142.39,142.34,11.51050516]
[1764868573202,0.72,142.38,142.34,12.23050516]
[1764868574015,4.48536561,142.39,142.35,5.20536561]
[1764868574219,0.72,142.39,142.36,4.48536561]
[1764868574619,0.72,142.39,142.35,5.20536561]
[1764868575316,12.22840296,142.39,142.35,11.51010905]
[1764868575500,12.22840296,142.39,142.35,7.02474344]
[1764868575698,0.72,142.38,142.35,7.02474344]
[1764868576098,0.72,142.38,142.34,11.51060645]
[1764868576298,0.72,142.38,142.34,12.23060645]
[1764868576504,4.48536561,142.37,142.32,5.20536561]
[1764868576719,4.48536561,142.36,142.32,7.7463569]
[1764868576918,5.20536561,142.36,142.32,12.23172251]
[1764868577498,12.22999312,142.36,142.32,7.7463569]
[1764868577732,12.22999312,142.36,142.32,12.23172251]
[1764868578222,0.72,142.35,142.31,11.51215498]
[1764868578529,5.20536561,142.35,142.31,11.51215498]
[1764868578732,5.20536561,142.35,142.31,12.23215498]
[1764868578918,7.74462751,142.36,142.32,12.23174024]
[1764868579230,11.50999312,142.36,142.31,11.51213274]
[1764868579419,0.72,142.35,142.31,11.51213274]
[1764868579621,12.23032132,142.35,142.31,12.23213274]
[1764868580030,7.74495571,142.35,142.31,12.23213274]
[1764868580224,12.23032132,142.35,142.31,12.23213274]
[1764868580926,4.48536561,142.33,142.3,7.12725446]
[1764868581128,4.48536561,142.33,142.3,0.1]
[1764868581429,5.20536561,142.33,142.3,7.84736654]
[1764868581727,5.20536561,142.33,142.3,0.1]
[1764868582208,4.48536561,142.32,142.3,0.1]
[1764868582530,5.20536561,142.33,142.3,0.1]
[1764868583827,5.20536561,142.32,142.3,0.1]
[1764868584016,4.48536561,142.31,142.3,0.1]
[1764868584220,5.20536561,142.31,142.3,0.1]
[1764868584841,28.54114268,142.31,142.3,0.1]
[1764868587831,16.308864,142.31,142.3,0.1]
[1764868588018,19.99139017,142.33,142.3,0.1]
[1764868588216,20.79422961,142.31,142.3,0.1]
[1764868588422,21.51422961,142.31,142.3,0.1]
[1764868588808,28.54114268,142.31,142.3,0.1]
[1764868589305,41.83645321,142.31,142.3,0.1]
[1764868589514,9.52994492,142.3,142.28,0.1]
[1764868589716,21.05531053,142.29,142.28,0.1]
[1764868590027,25.11880892,142.27,142.26,0.1]
[1764868590228,29.60417453,142.27,142.26,0.1]
[1764868590527,30.32417453,142.27,142.26,0.1]
[1764868590917,32.86769765,142.27,142.26,0.1]
[1764868591107,37.35306326,142.27,142.26,0.1]
[1764868592826,7.02888873,142.27,142.26,0.1]
[1764868593036,29.27422961,142.29,142.26,0.1]
[1764868593810,36.30249124,142.29,142.26,0.1]
[1764868594011,36.30249124,142.29,142.26,0.82]
[1764868594230,36.30249124,142.29,142.26,0.1]
[1764868594422,43.74999863,142.29,142.26,0.1]
[1764868594733,11.932873,142.28,142.26,0.1]
[1764868595118,18.96157411,142.28,142.26,0.1]
[1764868595315,7.02870111,142.28,142.26,0.1]
[1764868595520,7.02870111,142.28,142.26,0.82]
[1764868596121,7.74870111,142.28,142.26,0.1]
[1764868596318,18.96157411,142.28,142.26,0.1]
[1764868596518,15.45949183,142.28,142.26,0.1]
[1764868596834,8.43079072,142.27,142.26,0.1]
[1764868597015,7.71079072,142.27,142.26,0.1]
[1764868597218,14.73949183,142.28,142.26,0.1]
[1764868597433,7.02870111,142.28,142.26,0.1]
[1764868597730,7.71079072,142.27,142.26,0.1]
[1764868598532,14.73949183,142.28,142.26,0.1]
[1764868599341,16.308864,142.27,142.26,0.82]
[1764868599634,23.21897409,142.29,142.26,0.1]
[1764868599941,8.43079072,142.28,142.26,0.1]
[1764868600536,7.02888873,142.27,142.26,0.1]
[1764868601945,22.4989076,142.29,142.26,0.82]
[1764868602153,14.78811688,142.29,142.26,0.82]
[1764868602443,23.33607873,142.31,142.28,7.71079072]
[1764868602640,31.80607873,142.31,142.27,7.71079072]
[1764868602945,31.80607873,142.31,142.27,8.38079072]
[1764868603140,31.09607873,142.31,142.28,0.67]
[1764868604746,16.308864,142.31,142.28,15.40907965]
[1764868604953,8.42079072,142.33,142.28,15.40907965]
[1764868604954,15.47079072,142.33,142.28,15.40907965]
[1764868605122,15.47079072,142.33,142.29,0.67]
[1764868605732,7.71079072,142.32,142.27,7.02842832]
[1764868606023,7.71079072,142.28,142.26,0.1]
[1764868606431,7.71079072,142.28,142.26,0.77]
[1764868608125,7.71079072,142.27,142.26,0.1]
[1764868608547,8.42079072,142.27,142.26,0.1]
[1764868609047,7.71079072,142.27,142.26,0.1]
[1764868609250,14.7885562,142.28,142.26,0.77]
[1764868609421,22.49934692,142.28,142.26,0.1]
[1764868610534,22.49934692,142.28,142.26,0.77]
[1764868611060,22.49934692,142.28,142.26,0.1]
[1764868611546,23.20934692,142.28,142.26,0.1]
[1764868611751,8.42079072,142.27,142.26,0.1]
[1764868612360,17.23073564,142.27,142.26,0.1]
[1764868612532,33.53959964,142.27,142.26,0.1]
[1764868612740,24.25962437,142.27,142.26,0.1]
[1764868617747,24.25962437,142.27,142.25,0.1]
[1764868617944,32.48965472,142.26,142.25,0.1]
[1764868618445,24.068864,142.26,142.25,0.1]
[1764868619347,24.778864,142.26,142.25,0.1]
[1764868619753,31.80824682,142.26,142.25,0.1]
[1764868620260,31.09824682,142.26,142.25,0.1]
[1764868620842,2.81462196,142.29,142.25,8.48079072]
[1764868621134,14.7884782,142.28,142.25,8.48079072]
[1764868621333,15.4984782,142.28,142.25,0.1]
[1764868621555,24.01965472,142.26,142.25,0.1]
[1764868621752,47.61898246,142.26,142.25,0.1]
[1764868621956,48.32898246,142.26,142.25,0.1]
[1764868622254,48.32898246,142.26,142.25,1e-08]
[1764868622440,48.32898246,142.26,142.23,0.1]
[1764868622441,8.80994492,142.25,142.23,1e-08]
[1764868622626,19.45177423,142.24,142.23,1e-08]
[1764868622832,20.16177423,142.24,142.23,1e-08]
[1764868624257,27.19214543,142.24,142.23,1e-08]
[1764868624433,7.0303712,142.24,142.23,1e-08]
[1764868624634,31.0992352,142.24,142.23,1e-08]
[1764868624836,14.7903712,142.24,142.23,0.67000001]
[1764868625256,7.76,142.24,142.23,0.67000001]
[1764868625458,7.76,142.24,142.23,1e-08]
[1764868625750,7.0290839,142.27,142.23,8.38810299]
[1764868625955,7.0290839,142.27,142.24,7.71810298]
[1764868626153,7.0290839,142.27,142.24,8.38810298]
[1764868626355,7.0290839,142.27,142.25,0.67]
[1764868626536,7.0290839,142.27,142.23,1e-08]
[1764868626537,17.018864,142.26,142.23,1e-08]
[1764868626733,31.80696698,142.26,142.23,0.67000001]
[1764868626935,24.088864,142.26,142.23,0.67000001]
[1764868627738,32.51696698,142.26,142.23,0.67000001]
[1764868628055,24.088864,142.26,142.23,8.38810299]
[1764868628253,31.1184277,142.26,142.23,8.38810299]
[1764868628454,16.5280479,142.24,142.23,1e-08]
[1764868628755,40.6169119,142.24,142.23,1e-08]
[1764868628961,41.3269119,142.24,142.23,1e-08]
[1764868629437,40.6169119,142.24,142.23,1e-08]
[1764868629637,41.3269119,142.24,142.23,1e-08]
[1764868629838,48.3572831,142.24,142.23,1e-08]
[1764868630237,32.0484191,142.24,142.23,1e-08]
[1764868630833,22.52847418,142.24,142.23,1e-08]
[1764868631056,23.23847418,142.24,142.23,1e-08]
[1764868631365,38.83733818,142.24,142.23,1e-08]
[1764868631652,7.0303712,142.24,142.23,0.67000001]
[1764868631856,24.2684191,142.24,142.23,1e-08]
[1764868634238,16.55031612,142.24,142.23,1e-08]
[1764868634663,23.5584191,142.24,142.23,1e-08]
[1764868634845,7.0303712,142.24,142.23,1e-08]
[1764868635245,31.05733818,142.24,142.23,1e-08]
[1764868635563,14.74847418,142.24,142.23,1e-08]
[1764868635759,23.3392352,142.24,142.23,0.72000001]
[1764868635935,7.0303712,142.24,142.23,0.72000001]
[1764868636337,117.50996417,142.25,142.23,0.72000001]
[1764868636548,117.50996417,142.25,142.23,8.43810299]
[1764868636741,117.50996417,142.25,142.23,0.72000001]
[1764868637057,117.50996417,142.25,142.23,1e-08]
[1764868637255,117.50996417,142.25,142.23,0.72000001]
[1764868638157,14.80996417,142.25,142.23,8.43810299]
[1764868638567,35.14149707,142.29,142.23,8.43810299]
[1764868638568,8.80994492,142.3,142.24,8.43810298]
[1764868638767,15.49810298,142.29,142.24,0.72]
[1764868639061,7.71810298,142.27,142.23,1e-08]
[1764868639254,15.49810298,142.26,142.23,1e-08]
[1764868639461,7.78,142.26,142.23,0.72000001]
[1764868639666,7.78,142.26,142.23,8.43810299]
[1764868639843,41.77422805,142.3,142.25,7.71810298]
[1764868640045,7.78,142.29,142.25,7.71810298]
[1764868640268,16.308864,142.27,142.26,0.72]
[1764868640840,7.02798422,142.29,142.26,8.43810298]
[1764868641160,7.02798422,142.29,142.27,7.71810298]
[1764868641161,14.80798422,142.29,142.27,7.71810298]
[1764868641362,31.11684822,142.29,142.27,0.72]
[1764868641563,31.11684822,142.29,142.28,0.72]
[1764868641986,24.088864,142.29,142.28,0.72]
[1764868642144,14.80697015,142.31,142.28,0.72]
[1764868642347,14.80697015,142.31,142.23,1e-08]
[1764868642348,16.308864,142.28,142.23,1e-08]
[1764868642652,16.308864,142.24,142.23,1e-08]
[1764868643047,16.308864,142.24,142.23,0.72000001]
[1764868643571,16.308864,142.24,142.23,1e-08]
[1764868643864,24.02696698,142.24,142.23,1e-08]
[1764868644070,31.05733818,142.24,142.23,1e-08]
[1764868644552,16.308864,142.24,142.23,0.72000001]
[1764868644747,7.02957105,142.26,142.23,0.72000001]
[1764868645149,16.5280479,142.24,142.23,1e-08]
[1764868645348,17.1780479,142.24,142.23,1e-08]
[1764868646168,24.2084191,142.24,142.23,1e-08]
[1764868649069,32.0084191,142.24,142.23,1e-08]
[1764868650752,31.3584191,142.24,142.23,1e-08]
[1764868650947,32.0084191,142.24,142.23,1e-08]
[1764868651473,14.74847418,142.24,142.23,1e-08]
[1764868651662,38.85733818,142.24,142.23,1e-08]
[1764868652768,84.73620311,142.24,142.19,0.1]
[1764868652973,24.02696698,142.2,142.19,0.1]
[1764868653159,48.35501488,142.2,142.19,1e-08]
[1764868653350,49.00501488,142.2,142.19,1e-08]
[1764868654678,55.38736368,142.2,142.19,1e-08]
[1764868654896,56.03736368,142.2,142.19,1e-08]
[1764868657285,55.38736368,142.2,142.19,1e-08]
[1764868657486,47.6692607,142.2,142.19,1e-08]
[1764868657880,55.38736368,142.2,142.19,1e-08]
[1764868658391,51.90547896,142.2,142.19,1e-08]
[1764868659586,43.09553404,142.2,142.19,1e-08]
[1764868660694,31.1412128,142.2,142.19,1e-08]
[1764868660987,43.09553404,142.2,142.19,0.72000001]
[1764868661194,43.09553404,142.2,142.19,1e-08]
[1764868662987,51.90547896,142.2,142.19,1e-08]
[1764868663371,52.56547896,142.2,142.19,1e-08]
[1764868665267,51.90547896,142.2,142.19,1e-08]
[1764868665681,64.5798002,142.2,142.19,1e-08]
[1764868666590,44.10547896,142.2,142.19,1e-08]
[1764868666774,52.62547896,142.2,142.19,1e-08]
[1764868668507,43.09553404,142.2,142.19,0.65000001]
[1764868668797,52.62547896,142.2,142.19,1e-08]
[1764868669297,51.90547896,142.2,142.19,1e-08]
[1764868669498,52.62547896,142.2,142.19,1e-08]
[1764868671378,52.62547896,142.2,142.19,0.65000001]
[1764868671379,35.29553404,142.2,142.19,0.65000001]
[1764868671699,43.09553404,142.2,142.19,0.65000001]
[1764868671997,26.78667004,142.2,142.19,0.65000001]
[1764868672180,43.09553404,142.2,142.19,0.65000001]
[1764868672393,11.95432124,142.2,142.19,0.65000001]
[1764868672578,26.78637523,142.21,142.19,0.65000001]
[1764868672779,43.09523923,142.21,142.19,0.65000001]
[1764868673171,31.14091799,142.21,142.19,0.65000001]
[1764868673381,11.95432124,142.2,142.19,0.65000001]
[1764868674273,24.108864,142.21,142.19,0.65000001]
[1764868674470,0.72,142.29,142.19,19.63709305]
[1764868674687,11.95432124,142.25,142.2,11.95432124]
[1764868674899,11.95432124,142.25,142.2,12.60432124]
[1764868674900,36.06318524,142.25,142.2,12.60432124]
[1764868675104,36.06318524,142.25,142.21,0.65]
[1764868675283,26.7843968,142.25,142.21,7.68167528]
[1764868675484,43.0932608,142.25,142.21,7.68167528]
[1764868675794,7.8,142.27,142.23,11.95432124]
[1764868676002,24.108864,142.27,142.22,12.60432124]
[1764868676179,36.06318524,142.27,142.22,12.60432124]
[1764868676379,36.06318524,142.27,142.19,1e-08]
[1764868676380,16.308864,142.2,142.19,1e-08]
[1764868676589,36.06318524,142.2,142.19,1e-08]
[1764868677101,44.87313016,142.2,142.19,1e-08]
[1764868677281,52.62547896,142.2,142.19,1e-08]
[1764868677887,51.90547896,142.2,142.19,1e-08]
[1764868678284,43.09553404,142.2,142.19,0.65000001]
[1764868678702,43.09553404,142.2,142.19,1e-08]
[1764868679592,52.62547896,142.2,142.19,1e-08]
[1764868679991,64.5798002,142.2,142.19,1e-08]
[1764868680882,52.62547896,142.2,142.19,1e-08]
[1764868681078,44.82547896,142.2,142.19,1e-08]
[1764868681295,52.62547896,142.2,142.19,1e-08]
[1764868681495,64.5798002,142.2,142.19,1e-08]
[1764868683098,25.11880892,142.16,142.15,1e-08]
[1764868683298,44.87313016,142.16,142.15,1e-08]
[1764868683610,45.59313016,142.16,142.15,1e-08]
[1764868684591,52.62745767,142.16,142.15,1e-08]
[1764868684994,25.11880892,142.12,142.11,0.1]
[1764868685195,44.87313016,142.12,142.11,0.1]
[1764868686511,51.9094375,142.12,142.11,0.1]
[1764868688412,39.95511626,142.12,142.11,0.1]
[1764868688706,35.29949258,142.12,142.11,0.1]
[1764868688915,43.09949258,142.12,142.11,0.75]
[1764868689591,43.09949258,142.12,142.11,0.1]
[1764868689907,43.09949258,142.12,142.11,0.75]
[1764868690421,40.67511626,142.12,142.11,0.1]
[1764868690624,52.6294375,142.12,142.11,0.1]
[1764868691118,23.34517134,142.12,142.11,0.1]
[1764868691297,43.09949258,142.12,142.11,0.1]
[1764868692091,43.09949258,142.12,142.11,0.75]
[1764868692439,35.29949258,142.12,142.11,0.75]
[1764868692593,35.29949258,142.12,142.11,0.1]
[1764868692594,36.06318524,142.12,142.11,0.1]
[1764868692997,36.06318524,142.12,142.11,0.76]
[1764868694320,43.09949258,142.12,142.11,0.76]
[1764868694500,43.09949258,142.12,142.11,0.1]
[1764868694695,35.29949258,142.12,142.11,0.1]
[1764868694895,43.09949258,142.12,142.11,0.1]
[1764868695423,52.6294375,142.12,142.11,0.1]
[1764868696327,51.9094375,142.12,142.11,0.1]
[1764868696499,43.09949258,142.12,142.11,0.1]
[1764868696820,35.29949258,142.12,142.11,0.1]
[1764868697001,43.09949258,142.12,142.11,0.1]
[1764868697816,52.6294375,142.12,142.11,0.1]
[1764868698800,40.67511626,142.12,142.11,0.1]
[1764868699004,52.6294375,142.12,142.11,0.1]
[1764868700916,25.11880892,142.09,142.08,0.1]
[1764868701119,32.91880892,142.09,142.08,0.1]
[1764868701422,36.06318524,142.09,142.08,0.76]
[1764868701816,7.8,142.1,142.08,0.76]
[1764868702326,7.8,142.1,142.08,7.79828828]
[1764868702711,7.8,142.1,142.09,0.66]
[1764868705209,12.30924789,142.1,142.09,0.66]
[1764868705924,7.8,142.1,142.09,0.66]
[1764868706812,12.30924789,142.1,142.09,0.66]
[1764868707229,7.8,142.1,142.09,0.66]
[1764868707620,16.308864,142.11,142.09,7.69775546]
[1764868708131,16.308864,142.11,142.1,0.66]
[1764868711028,16.308864,142.11,142.1,7.69729767]
[1764868712128,16.308864,142.11,142.1,0.66]
[1764868712816,27.85507145,142.11,142.1,0.66]
[1764868713015,27.85507145,142.11,142.08,0.76]
[1764868713216,7.8,142.1,142.08,0.76]
[1764868713533,4.50924789,142.09,142.08,0.76]
[1764868713912,4.50924789,142.09,142.08,0.1]
[1764868714119,11.54704083,142.09,142.08,0.1]
[1764868715736,7.03779294,142.09,142.08,0.1]
[1764868716039,11.54704083,142.09,142.08,0.1]
[1764868717018,21.07698575,142.09,142.08,0.1]
[1764868718337,16.56773786,142.09,142.08,0.1]
[1764868718547,21.07698575,142.09,142.08,0.1]
[1764868719425,20.35698575,142.09,142.08,0.1]
[1764868719630,21.07698575,142.09,142.08,0.1]
[1764868720138,11.54704083,142.09,142.08,0.1]
[1764868720546,10.64481947,142.09,142.08,0.1]
[1764868720844,9.92481947,142.09,142.08,0.1]
[1764868721044,17.72481947,142.09,142.08,0.1]
[1764868721822,27.25476439,142.09,142.08,0.1]
[1764868724423,24.36773786,142.09,142.08,0.1]
[1764868724629,27.25476439,142.09,142.08,0.1]
[1764868724941,24.36773786,142.09,142.08,0.1]
[1764868725242,27.25476439,142.09,142.08,0.1]
[1764868726435,27.25476439,142.09,142.08,1e-08]
[1764868726637,8.80994492,142.05,142.01,0.68]
[1764868726836,2.88702653,142.03,142.01,0.68]
[1764868727638,10.68702653,142.04,142.01,0.68]
[1764868728029,17.72768695,142.04,142.01,0.68]
[1764868729051,7.8,142.04,142.01,7.72157323]
[1764868729441,7.8,142.04,142.02,0.68]
[1764868730028,7.8,142.04,142.02,7.72108699]
[1764868730445,7.8,142.04,142.03,0.68]
[1764868730647,18.41738861,142.04,142.01,0.68]
[1764868730847,2.88702653,142.03,142.01,0.68]
[1764868731152,7.8,142.02,142.01,0.68]
[1764868731736,10.68702653,142.02,141.99,0.68]
[1764868731932,7.8,142.02,141.99,0.68]
[1764868732239,10.68702653,142.02,141.99,7.72271483]
[1764868732427,7.8,142.02,141.99,7.72271483]
[1764868732628,7.8,142.02,142.0,0.68]
[1764868733240,24.108864,142.02,142.0,0.68]
[1764868734943,16.308864,142.02,142.0,10.60913784]
[1764868735130,16.308864,142.02,142.0,7.72211131]
[1764868735331,16.308864,142.02,142.01,0.68]
[1764868737353,16.308864,142.02,142.01,7.72175762]
[1764868738744,16.308864,142.04,142.01,10.60878415]
[1764868738947,16.308864,142.03,142.02,0.68]
[1764868741450,23.34963003,142.03,142.02,0.68]
[1764868741633,16.308864,142.03,142.02,0.68]
[1764868745169,16.308864,142.03,142.02,7.72126179]
[1764868745678,110.5,142.05,142.02,10.60828832]
[1764868745847,7.78,142.08,142.03,3.56702653]
[1764868746049,25.38619554,142.08,142.03,3.56702653]
[1764868746271,7.78,142.08,142.04,0.68]
[1764868746643,7.78,142.08,142.05,2.88702653]
[1764868747070,7.78,142.08,142.06,0.68]
[1764868748060,16.308864,142.09,142.06,7.71921855]
[1764868748251,7.78,142.1,142.06,10.60624508]
[1764868748448,24.088864,142.1,142.07,0.68]
[1764868748976,7.78,142.1,142.07,0.68]
[1764868749177,7.78,142.1,142.07,3.56702653]
[1764868749375,27.66589053,142.1,142.06,7.71921855]
[1764868749672,3.57702653,142.09,142.06,0.68]
[1764868749971,9.92492876,142.09,142.06,0.68]
[1764868750166,9.92492876,142.09,142.07,0.68]
[1764868752957,24.088864,142.1,142.07,0.68]
[1764868753157,24.088864,142.1,142.07,7.71874175]
[1764868753362,31.78618962,142.1,142.07,0.68]
[1764868753686,34.67321615,142.1,142.06,0.72]
[1764868754056,0.66,142.09,142.04,9.92719412]
[1764868754251,7.03828828,142.08,142.05,0.72]
[1764868754555,10.58531481,142.08,142.05,0.72]
[1764868754948,7.03828828,142.08,142.05,0.72]
[1764868755150,7.69828828,142.08,142.05,0.72]
[1764868756162,7.03828828,142.08,142.05,0.72]
[1764868756782,15.47828828,142.08,142.04,3.60702653]
[1764868756974,15.47828828,142.08,142.05,0.72]
[1764868757269,18.36531481,142.08,142.05,0.72]
[1764868758454,17.70531481,142.08,142.03,7.04074642]
[1764868758671,17.70531481,142.08,142.03,7.76074642]
[1764868758672,19.85589053,142.07,142.03,7.76074642]
[1764868758874,16.308864,142.06,142.05,7.0397225]
[1764868759076,24.088864,142.08,142.05,7.0397225]
[1764868759277,24.088864,142.08,142.06,0.72]
[1764868761277,24.088864,142.08,142.06,7.75914535]
[1764868761481,16.308864,142.09,142.06,10.64617188]
[1764868761699,16.308864,142.09,142.07,0.72]
[1764868762054,19.85589053,142.09,142.05,7.75950345]
[1764868762266,19.19589053,142.09,142.06,0.72]
[1764868762578,26.89398121,142.09,142.06,0.72]
[1764868762769,26.23398121,142.09,142.06,0.72]
[1764868762978,23.34695468,142.09,142.06,0.72]
[1764868763961,26.89398121,142.09,142.06,0.72]
[1764868764177,23.34695468,142.09,142.06,0.72]
[1764868764472,16.308864,142.09,142.06,10.64623962]
[1764868764979,16.308864,142.11,142.07,0.72]
[1764868765185,16.308864,142.1,142.07,0.72]
[1764868765372,16.308864,142.1,142.07,3.60702653]
[1764868765765,16.308864,142.1,142.08,0.72]
[1764868767088,16.308864,142.1,142.08,7.75781837]
[1764868767583,16.308864,142.1,142.09,0.72]
[1764868768383,23.34617644,142.1,142.08,0.72]
[1764868768587,16.308864,142.1,142.08,0.72]
[1764868770158,16.308864,142.1,142.08,10.64531183]
[1764868770580,14.81654294,142.12,142.09,0.71]
[1764868770786,31.12540694,142.12,142.09,0.71]
[1764868771381,31.81540694,142.12,142.09,0.71]
[1764868771680,31.12540694,142.12,142.09,7.74774366]
[1764868771887,31.12540694,142.12,142.09,0.71]
[1764868772089,31.81540694,142.12,142.09,0.71]
[1764868772393,31.12540694,142.12,142.09,0.71]
[1764868772560,117.51569882,142.14,142.1,9.92418801]
[1764868772761,16.308864,142.13,142.1,9.92418801]
[1764868772956,16.308864,142.12,142.09,9.92473339]
[1764868773179,16.308864,142.12,142.09,0.71]
[1764868773382,0.69,142.11,142.08,7.03796121]
[1764868773585,7.78,142.11,142.08,7.74796121]
[1764868773788,7.78,142.11,142.09,0.71]
[1764868775398,7.78,142.11,142.09,3.59702653]
[1764868776063,7.78,142.11,142.08,7.03810036]
[1764868776376,7.78,142.11,142.08,2.88702653]
[1764868776563,15.50706766,142.11,142.08,0.71]
[1764868776764,15.50706766,142.11,142.08,3.59702653]
[1764868777960,15.50706766,142.11,142.08,0.71]
[1764868778581,15.50706766,142.11,142.08,3.59702653]
[1764868779373,15.50706766,142.11,142.08,0.71]
[1764868779579,15.50706766,142.11,142.08,3.59702653]